Cogmind - Beta 16 @@@ ROGUE MODE // 2025.12.13 @ 23:35:24 Player: Keen Result: Destroyed by S-10 Pest with Light Assault Rifle Performance ------------- Evolutions (1) 500 Regions Visited (3) 600 Robots Destroyed (6) 30 Value Destroyed (47) 47 Prototype IDs (2) 40 Alien Tech Used (0) 0 Bonus (0) 0 TOTAL SCORE: 1217 Bonus ------- None Cogmind --------- Core Integrity 0/400 Matter 261/300 Energy 8/100 System Corruption 0% Temperature Cool (0) Movement Core (50) Location -9/Mines Parts ------- > --- POWER (1) -------- (None) > --- PROPULSION (2) --- (None) > --- UTILITY (2) ------ Shield Generator > --- WEAPON (4) ------- (None) > --- INVENTORY (5) ---- Heat Sink Structural Scanner Peak State ------------ > --- POWER ------------ Light Ion Engine > --- PROPULSION ------- Wheel Wheel > --- UTILITY ---------- Heat Sink Sensor Array > --- WEAPON ----------- Medium Laser Medium Laser > --- INVENTORY -------- (None) [Rating: 7] Favorites ----------- Power Light Ion Engine Engine Light Ion Engine Propulsion Wheel Wheel Wheel Utility Terrain Scanner Device Terrain Scanner Processor Terrain Scan Processor Weapon Medium Laser Energy Gun Medium Laser Build | -11 -10 -9 -9 ------- Run | Yrd Mat Mat Min Slots Evolved 2 | . . 2 . Power . | . . . . Propulsion . | . . . . Utility . | . . . . Weapon 2 | . . 2 . Parts Attached 17 | 5 6 4 2 Power 2 | 1 . . 1 Engine 2 | 1 . . 1 Core . | . . . . Reactor . | . . . . Propulsion 3 | 2 1 . . Treads . | . . . . Leg . | . . . . Wheel 3 | 2 1 . . Hover . | . . . . Flight . | . . . . Utility 9 | . 4 4 1 Device 7 | . 4 2 1 Storage . | . . . . Processor 2 | . . 2 . Hackware . | . . . . Protection . | . . . . Artifact . | . . . . Weapon 3 | 2 1 . . Energy Gun 3 | 2 1 . . Energy Cannon . | . . . . Ballistic Gun . | . . . . Ballistic Cannon . | . . . . Launcher . | . . . . Special Weapon . | . . . . Impact Weapon . | . . . . Slashing Weapon . | . . . . Piercing Weapon . | . . . . Special Melee Weapon . | . . . . Unidentified Prototypes . | . . . . Parts Lost 12 | . 7 3 2 Power 2 | . 1 . 1 Propulsion 3 | . 2 1 . Utility 4 | . 2 1 1 Weapon 3 | . 2 1 . Highest Loss Streak 7 | . 7 3 1 To Critical Strikes . | . . . . Average Backups 2 | . 1 3 3 Power . | . . 1 . Propulsion . | . . . . Utility 1 | . 1 2 2 Weapon . | . . . . Tool/Special . | . . . . Unused Backups . | . . . . Power . | . . . . Propulsion . | . . . . Utility . | . . . . Weapon . | . . . . Tool/Special . | . . . . Average Slot Usage (%) 52 | . 75 33 13 Engine 6 | . 11 . 2 Wheel 14 | . 22 9 . Device 14 | . 18 10 11 Processor 1 | . . 4 . Energy Gun 14 | . 22 9 . Peak Build Rating 7 | 5 7 5 4 Average Rating 4 | 3 5 3 1 On Entrance 2 | . 5 2 1 Avg Prop Armor Cover (%) . | . . . . Naked Turns 49 | . 23 . 26 Heaviest Build 9 | 7 9 3 6 Greatest Support 20 | 20 20 16 3 Greatest Overweight (x) 2 | . 2 . 1 Average Overweight (x) . | . . . . Largest Inventory Capacity 5 | 5 5 5 5 Average Capacity 5 | 5 5 5 5 Most Carried 4 | . 3 4 4 Average Carried 2 | . 1 3 3 Final Capacity 5 | 5 5 5 5 Final Carried 4 | . 3 4 4 Class Distribution -------------------- 100% | Mutant Dominant Class ---------------- Mutant | -10/Materials Mutant | -9/Materials Mutant | -9/Mines Resources | -11 -10 -9 -9 ----------- Run | Yrd Mat Mat Min Matter Collected 357 | 189 118 15 35 Remotely . | . . . . Salvage Created 147 | . 132 15 . Parts 14 | . 12 2 . Haulers Intercepted . | . . . . Recyclers Shooed 1 | . 1 . . Parts Field Recycled . | . . . . Retrieved Matter . | . . . . Parts Self-Destructed . | . . . . Prevented . | . . . . Parts Restored . | . . . . Kills | -11 -10 -9 -9 ------- Run | Yrd Mat Mat Min Combat Hostiles Destroyed 1 | . . 1 . Guns 1 | . . 1 . Classes Destroyed 4 | . 3 1 . Builder 3 | . 3 . . Recycler 1 | . 1 . . Watcher 1 | . 1 . . Swarmer 1 | . . 1 . Best Kill Streak 3 | . 3 1 . Combat Bots Only 1 | . . 1 . Max Kills in Single Turn 1 | . 1 1 . Gunslinging . | . . . . Exploded . | . . . . Melee . | . . . . Uniques/NPCs Destroyed . | . . . . Combat | -11 -10 -9 -9 -------- Run | Yrd Mat Mat Min Hostile Shots Fired 179 | . 54 70 55 Missed 63 | . 16 25 22 Hits 116 | . 38 45 33 Projectile 116 | . 38 45 33 Critical Strikes 1 | . . 1 . Damage Taken 1071 | . 440 395 236 Core 565 | . 156 230 179 Absorbed by Shields 55 | . . 16 39 Core Remaining (%) 68 | 100 37 . . Volleys Fired 27 | . 19 8 . Largest 2 | . 2 1 . Hottest 100 | . 100 40 . Shots Fired 44 | . 36 8 . Gun 44 | . 36 8 . Cannon . | . . . . Launcher . | . . . . Special . | . . . . Kinetic . | . . . . Thermal 44 | . 36 8 . Explosive . | . . . . Electromagnetic . | . . . . Robot Hit Streak 4 | . 4 3 . Robot Miss Streak 5 | . 5 4 . Penetration Max . | . . . . Secondary Targets . | . . . . Shots Hit Robots 21 | . 18 3 . Core Hits 14 | . 13 1 . Critical Kills . | . . . . Critical Parts Destroyed . | . . . . Critical Strikes 1 | . 1 . . Burn 1 | . 1 . . Melee Attacks . | . . . . Impact . | . . . . Slashing . | . . . . Piercing . | . . . . Sneak Attacks . | . . . . Combat Hostiles . | . . . . Follow-up Attacks . | . . . . Damage Inflicted 330 | . 281 45 4 Guns 295 | . 250 45 . Cannons . | . . . . Explosions . | . . . . Melee . | . . . . Ramming 35 | . 31 . 4 Kinetic . | . . . . Thermal 295 | . 250 45 . Explosive . | . . . . Electromagnetic . | . . . . Impact . | . . . . Slashing . | . . . . Piercing . | . . . . Highest Corruption 5 | . 5 . . Average Corruption 5 | . 5 . . Corruption Purged . | . . . . Corruption Blocked . | . . . . Effects 1 | . 1 . . Matter Fused 1 | . 1 . . Overload Shots . | . . . . Overflow Damage . | . . . . Projectiles . | . . . . Explosions . | . . . . Melee . | . . . . Knockbacks . | . . . . Impact . | . . . . Kinetic . | . . . . Secondary . | . . . . Self-Inflicted Damage 15 | . 13 . 2 Shots . | . . . . Rammed 13 | . 11 . 2 Targets Rammed 13 | . 11 . 2 Kicked . | . . . . Crushed . | . . . . Highest Temperature 435 | . 435 11 . Average Temperature 134 | . 136 11 . Received Heat Transfer 265 | . 228 37 . Effects 2 | . 2 . . Shutdowns 1 | . 1 . . Matter Decay 1 | . 1 . . Siege Activations . | . . . . Martial Activations . | . . . . Shielding Activations . | . . . . Robots Disrupted . | . . . . Combat Hostiles . | . . . . Robots Corrupted . | . . . . Combat Hostiles . | . . . . Parts Fried . | . . . . Impact Corruptions . | . . . . Robots Melted . | . . . . Combat Hostiles . | . . . . Parts Melted 1 | . 1 . . Heat Transferred 914 | . 814 100 . Parts Sabotaged . | . . . . Parts Stolen . | . . . . Parts Stripped . | . . . . Power Chain Reactions . | . . . . Alert | -11 -10 -9 -9 ------- Run | Yrd Mat Mat Min Maximum Alert Level . | . . . . Low Security (%) 100 | 100 100 100 100 Level 1 . | . . . . Level 2 . | . . . . Level 3 . | . . . . Level 4 . | . . . . Level 5 . | . . . . High Security . | . . . . Max Security . | . . . . Peak Influence 90 | . 90 37 65 Initial 37 | . . 37 . Average 9 | . 2 15 26 Influence Increases 247 | . 122 20 105 Destroy 0b10 Robot/C 20 | . . 20 . Destroy 0b10 Robot/NC 25 | . 25 . . Destroy Leader 2 | . 2 . . Successful Hack 5 | . 5 . . Lose Combat Pursuer 195 | . 90 . 105 Influence Decreases 202 | . 32 110 60 Entered New Map 53 | . . 53 . Time Decay 119 | . 32 47 40 Lost Part 30 | . . 10 20 Squads Dispatched 3 | . 3 . . Investigation 2 | . 2 . . Extermination . | . . . . Reinforcement 1 | . 1 . . Assault . | . . . . Garrison . | . . . . Intercept . | . . . . Searches Triggered . | . . . . Construction Impeded . | . . . . Haulers Reinforced . | . . . . Active Scanning Responses . | . . . . Cargo Convoy Interrupts . | . . . . Stealth | -11 -10 -9 -9 --------- Run | Yrd Mat Mat Min Distress Signals 1 | . . 1 . Communications Jammed . | . . . . Distress Signals . | . . . . Times Spotted 33 | . 12 11 10 Peak Tracking Total 10 | . 7 10 7 Tactical Retreats 4 | . 1 . 3 Traps | -11 -10 -9 -9 ------- Run | Yrd Mat Mat Min Traps Triggered 2 | . 2 . . Indirectly . | . . . . Trap Hack Attempts . | . . . . Triggered . | . . . . Disarmed . | . . . . Reprogrammed . | . . . . Reused . | . . . . Traps Extracted . | . . . . Installed . | . . . . Triggered . | . . . . Machines | -11 -10 -9 -9 ---------- Run | Yrd Mat Mat Min Machines Disabled . | . . . . Max in Single Turn . | . . . . Machines Repaired . | . . . . Machines Dismantled . | . . . . Machines Sabotaged . | . . . . Overloaded Fab Kills . | . . . . Hacking | -11 -10 -9 -9 --------- Run | Yrd Mat Mat Min Machines Accessed 5 | . 4 1 . Terminals 4 | . 3 1 . Fabricators . | . . . . Repair Stations . | . . . . Recycling Units 1 | . 1 . . Scanalyzers . | . . . . Garrison Access . | . . . . Total Hacks 17 | . 16 1 . Successful 5 | . 5 . . Failed 12 | . 11 1 . Catastrophic 3 | . 2 1 . Database Lockouts . | . . . . Manual . | . . . . Terminals 11 | . 10 1 . Fabricators . | . . . . Repair Stations . | . . . . Recycling Units 6 | . 6 . . Scanalyzers . | . . . . Garrison Access . | . . . . Terminal Hacks 2 | . 2 . . Prototype ID Bank 1 | . 1 . . Zone Layout 1 | . 1 . . Fabricator Hacks . | . . . . Repair Station Hacks . | . . . . Recycling Unit Hacks 3 | . 3 . . Process 1 | . 1 . . Report Inventory 1 | . 1 . . Retrieve Matter 1 | . 1 . . Scanalyzer . | . . . . Garrison Access Hacks . | . . . . Unauthorized Hacks . | . . . . Terminals . | . . . . Fabricators . | . . . . Repair Stations . | . . . . Recycling Units . | . . . . Scanalyzers . | . . . . Garrison Access . | . . . . Data Cores Recovered . | . . . . Used . | . . . . Hacking Detections 4 | . 3 1 . Full Trace Events 2 | . 2 . . Feedback Events . | . . . . Feedback Blocked . | . . . . Robot Schematics Acquired . | . . . . Robots Built . | . . . . Authchips . | . . . . Time . | . . . . Total Robot Build Rating . | . . . . Part Schematics Acquired . | . . . . Parts Built . | . . . . Authchips . | . . . . Time . | . . . . Total Part Build Rating . | . . . . Part Studies Acquired . | . . . . Parts Repaired . | . . . . Time . | . . . . Parts Recycled . | . . . . Recycled Matter 13 | . 13 . . Retrieved Matter 13 | . 13 . . Retrieved Components . | . . . . Parts Scanalyzed . | . . . . Part Schematics Acquired . | . . . . Parts Damaged . | . . . . Bothacking | -11 -10 -9 -9 ------------ Run | Yrd Mat Mat Min Used RIF Installer . | . . . . Robots Hacked . | . . . . Non-combat . | . . . . Combat . | . . . . Robot Hacks Applied . | . . . . Relay Couplers Released . | . . . . Fabnet Peak Effective % . | . . . . Robots Rewired . | . . . . Allies Hacked . | . . . . Hacks Repelled . | . . . . Allies | -11 -10 -9 -9 -------- Run | Yrd Mat Mat Min Total Allies 2 | . . . 2 Largest Group 2 | . . . 2 Highest-Rated Group 42 | . . . 42 Highest-Rated Ally 31 | . . . 31 Total Orders . | . . . . Ally Attacks 4 | . . . 4 Total Damage 61 | . . . 61 Kills . | . . . . Allies Corrupted . | . . . . Allies Melted . | . . . . Intel | -11 -10 -9 -9 ------- Run | Yrd Mat Mat Min Active Infowar (turns) 376 | . 186 116 74 Sensors 157 | . 157 . . Terrain 299 | . 129 116 54 Structural 25 | . 5 . 20 Robot Analysis Total . | . . . . Derelict Logs Recovered 1 | . . . 1 Drone Launches . | . . . . Drone Recoveries . | . . . . Exploration | -11 -10 -9 -9 ------------- Run | Yrd Mat Mat Min Turns Passed 558 | 34 298 124 102 Spaces Moved 574 | 37 237 119 181 Core 292 | 9 58 44 181 Treads . | . . . . Legs . | . . . . Wheels 282 | 28 179 75 . Hover . | . . . . Flight . | . . . . Fastest Speed 50 | 50 50 50 50 Average Speed 69 | 72 75 81 53 Slowest Speed 150 | 80 150 100 100 Overloaded Moves . | . . . . Propulsion Burnouts . | . . . . Robots Hopped . | . . . . Potential Cave-ins . | . . . . Cave-ins Triggered . | . . . . Exploration Rate (%) 30 | 3 45 16 57 Regions Visited 3 Branch Regions 1 Pre-discovered Areas 1 | . . . 1 Known Exits Taken . | . . . . Unknown Exits Taken 3 | 1 1 1 . Scrap Searched 1 | . . . 1 Spaces Dug . | . . . . Terrain Destroyed . | . . . . Melee . | . . . . Projectile . | . . . . AOE . | . . . . Terrain Rammed . | . . . . Walls Destroyed . | . . . . Machines Disabled . | . . . . Actions | -11 -10 -9 -9 --------- Run | Yrd Mat Mat Min Total 680 | 41 316 136 187 Wait 40 | . 38 2 . Move 571 | 36 236 118 181 Hop . | . . . . Pick Up 6 | . 3 3 . Fast Attach 14 | 5 7 2 . Attach 4 | . . 1 3 Detach 1 | . . . 1 Swap 3 | . 2 1 . Drop 1 | . . 1 . Fire 27 | . 19 8 . Melee . | . . . . Ram 13 | . 11 . 2 Kick . | . . . . Crush . | . . . . Escape Stasis . | . . . . Rewire . | . . . . Trap . | . . . . Miscellaneous . | . . . . Route ------- -11/Scrapyard -10/Materials -9/Materials -9/Mines (discovered 1 exit: [*Mat]) History --------- Turn | Location | Event 12 | -11/Scrapyard | Discovered new exit (range 16) 35 | -11/Scrapyard | Entered Materials 292 | -10/Materials | Core integrity fell below 50% 306 | -10/Materials | Discovered new exit (range 13) 322 | -10/Materials | Lost 7 parts (1p2n2u2w) 333 | -10/Materials | Entered another Materials area 333 | -9/Materials | Evolved 2 slots: Weapon x2 362 | -9/Materials | Build established: Mutant 451 | -9/Materials | Core integrity fell below 50% 454 | -9/Materials | Discovered new exit (range 8) 457 | -9/Materials | Entered Mines 465 | -9/Mines | Lost 3 parts (1n1u1w) 529 | -9/Mines | Core integrity fell below 20% 541 | -9/Mines | Discovered new exit (range 16) 559 | -9/Mines | Destroyed by S-10 Pest with Light Assault Rifle Last Messages --------------- active weapons. That window and button are only visible while in targeting mode. See the manual for a detailed description of its advanced features. K-01 Serf collects debris. B5-BUJ(z) destroyed. K-01 Serf collects debris. C-30 ARC bursts open, deploying its payload. S-10 Pest unfolds itself. Terrain Scanner destroyed. K-01 Serf collects debris. K-01 Serf cleans the Plasma Injector. K-01 Serf collects debris. EXIT=FOUND Slammed into S-10 Pest. K-01 Serf collects debris. Lgt. Ion Engine destroyed. Searching scrap... Found Hcp. Matter Pod. Found 35 Matter. Acquired 35 matter. Map ----- +----------------------------------------------------+ | | | | | | | | | | | | | | | | | | | | | | | | | | | | | | | | | | | | | | | | | ??????????????????????????????????????????? | | ??????####??????????????????##############? | | ?????## ##??????????####################? | | ?????# #####?####?######## ##? | | ???### ### #### ! < ##? | | ??? ### @ s ##? | | ????? #### s ##? | | ??????# #### ##? | | ??????# ######?## """ """ ##? | | ??????# ##?????## """ """ ##? | | ?????## ##????## """ """ ##? | | ????## ##???## ##? | | ??### ######### #######? | | ??# ### ## ###### #######? | | ??# ##?###### ##### ##?????? | | ??# ##???????##### ###????? | | ??## #???????????##### ###### ####???? | | ???# #??????????????######### ###???? | | ???## ##?????????????????###### ##???? | | ????# #????????????????####### ##???? | | ????# #??????????????###### ###???? | | ????# #####?????????### #####??? | | ????# #?????????## ##??? | | ????## #?????????### !!! ##??? | | ?????##### #?????????######### ! ##??? | | ?????????# #??????????########## ! ##??? | | ?????????# ####?????????????#### !!! ##??? | | ?????????# #???#####???????## ##??? | | ?????????# #??# ##??????##########??? | | ?????????### ### #??????##########??? | +----------------------------------------------------+ Best States ------------- Heat Dissipation 35 Energy Generation 10 Energy Capacity 125 Matter Stores 300 Matter Capacity 300 Sight Range 16 Robot Scan Range 14 Terrain Scan Range 14 Terrain Scan Density 85 Evasion (%) 50 Targeting Accuracy 5 Item Schematics ----------------- None Robot Schematics ------------------ None Fabricated ------------ Nothing Repaired ---------- Nothing Studied --------- None Alien Tech Used ----------------- None Achievements -------------- For Emergencies Only Challenges ------------ None Game ------ Seed HardenedLaunchCoupler Manual? 0 Play Time 00:18:20 Cumulative 3.2 hours Start 2025.12.13 @ 23:18:37 End 2025.12.13 @ 23:35:24 Sessions 1 Manual Loads 0 Difficulty Rogue Special Mode None Game No. 4 Rogue 3 Adventurer 1 Explorer 0 Win Type - Total 0 Types 0/0/0/0/0/0/0/0/0/0 Lore% 2 Gallery% 5 Achievement% 8 Wizard Run 0 Options --------- Layout 0 ASCII 0 Keyboard 1 Movement Mouse Keybinds 0 Fullscreen 2 Font 24/Terminus Map View 76x50 Zoom Use 21% Tactical HUD 0 Map Filters NONE Filters NONE Steam 1 RUN: 24956c4d-1fb0-4cc5-b737-6f00aa66e258